bitfinex-derivatives/quotes_SOLF0:USTF0_20251107
["timestamp","ask_amount","ask_price","bid_price","bid_amount"]
[1762542805913,0.03146978,162.56,162.53,2.91]
[1762542806113,3.02146978,162.56,162.52,0.04085749]
[1762542806314,3.02146978,162.56,162.52,2.95085749]
[1762542807012,3.02146978,162.56,162.52,8.49215749]
[1762542807322,0.03146978,162.56,162.52,2.95085749]
[1762542807518,3.02146978,162.56,162.52,2.95085749]
[1762542807719,3.02146978,162.56,162.52,0.04085749]
[1762542807913,2.99,162.54,162.52,0.04085749]
[1762542808214,8.531,162.54,162.52,0.04085749]
[1762542808418,7.69926793,162.53,162.52,0.04085749]
[1762542808717,2.99,162.52,162.45,0.1698]
[1762542809313,2.99,162.55,162.46,2.91]
[1762542809513,0.04400609,162.52,162.49,2.95429571]
[1762542810017,0.04400609,162.52,162.49,8.49669571]
[1762542810419,3.03400609,162.52,162.49,0.04429571]
[1762542810717,0.04400609,162.52,162.49,0.04429571]
[1762542810924,3.03400609,162.52,162.49,0.04429571]
[1762542811115,0.04400609,162.52,162.49,8.49659571]
[1762542811316,2.99,162.51,162.49,0.04429571]
[1762542811621,0.04400609,162.52,162.49,0.04429571]
[1762542812416,0.04400609,162.52,162.51,2.91]
[1762542812621,4.71043334,162.58,162.51,2.91]
[1762542812822,3.11,162.59,162.55,5.5404]
[1762542813022,3.11,162.59,162.52,2.91]
[1762542813624,0.02832118,162.57,162.54,0.03897123]
[1762542814816,0.02832118,162.57,162.55,5.5403]
[1762542815019,0.02832118,162.57,162.54,0.03897123]
[1762542816420,0.02832118,162.57,162.54,2.94897123]
[1762542818124,0.02832118,162.57,162.55,5.5402]
[1762542818327,0.02832118,162.57,162.56,2.91]
[1762542819625,3.11,162.63,162.54,5.72423369]
[1762542819929,3.11,162.66,162.59,2.91]
[1762542820318,3.11,162.69,162.62,2.91]
[1762542820520,4.83118508,162.68,162.62,2.91]
[1762542820724,3.14,162.7,162.63,3.13574826]
[1762542820924,3.14,162.68,162.65,0.03950319]
[1762542821226,3.14,162.66,162.65,0.04097085]
[1762542821426,7.97097281,162.66,162.65,0.04097085]
[1762542821824,7.97203534,162.66,162.65,0.04097085]
[1762542823130,3.14,162.64,162.58,5.5393]
[1762542823325,4.83203534,162.63,162.56,8.63]
[1762542823524,3.14,162.64,162.56,3.09]
[1762542823721,4.83270181,162.63,162.6,5.5386]
[1762542823919,8.85062629,162.67,162.6,3.09]
[1762542823920,3.14,162.67,162.6,3.09]
[1762542824124,0.04097085,162.65,162.62,0.04419415]
[1762542824327,7.97003516,162.64,162.62,0.04419415]
[1762542824523,4.83237222,162.63,162.62,0.04419415]
[1762542825230,7.97237222,162.63,162.62,0.04419415]
[1762542825434,3.14,162.62,162.53,21.35421891]
[1762542825629,3.14,162.6,162.53,3.09]
[1762542825829,4.83237222,162.59,162.53,3.09]
[1762542826029,3.14,162.6,162.53,3.09]
[1762542826332,7.97276932,162.59,162.53,3.09]
[1762542826528,4.83276932,162.58,162.52,5.5413]
[1762542826836,3.14,162.56,162.54,0.04257534]
[1762542827238,7.97387407,162.55,162.54,0.04257534]
[1762542827534,7.97387407,162.55,162.5,5.4]
[1762542827535,3.14,162.54,162.5,5.4]
[1762542827733,3.14,162.51,162.5,5.4]
[1762542828032,7.97387407,162.51,162.5,5.4]
[1762542828226,3.14,162.53,162.5,5.4]
[1762542828536,4.83537017,162.52,162.5,5.44049834]
[1762542828728,3.14,162.52,162.5,5.44049834]
[1762542828932,7.97564743,162.51,162.5,5.44049834]
[1762542829937,0.03996332,162.53,162.5,5.44049834]
[1762542830241,0.03996332,162.53,162.51,3.09]
[1762542830626,5.5389,162.6,162.52,3.09]
[1762542830828,4.83479606,162.59,162.52,3.09]
[1762542831036,3.14,162.6,162.55,8.6303]
[1762542831237,4.83424579,162.59,162.55,8.6303]
[1762542831442,3.14,162.6,162.55,8.6303]
[1762542831738,4.87883804,162.59,162.56,0.04515439]
[1762542831934,0.0437772,162.59,162.57,3.09]
[1762542833042,0.0437772,162.59,162.57,8.6296]
[1762542833232,0.0437772,162.59,162.58,3.09]
[1762542834247,0.0437772,162.59,162.56,0.04515439]
[1762542835452,0.0437772,162.59,162.56,5.58505439]
[1762542836660,0.0437772,162.59,162.56,8.67505439]
[1762542836852,0.0437772,162.59,162.57,8.6296]
[1762542837350,0.0437772,162.59,162.57,5.5396]
[1762542837552,0.0437772,162.59,162.56,0.04515439]
[1762542839954,0.0437772,162.59,162.56,8.67515439]
[1762542841156,0.0437772,162.59,162.57,3.09]
[1762542841860,0.0437772,162.59,162.56,0.04515439]
[1762542842062,2.9437772,162.59,162.56,0.04515439]
[1762542842750,0.0437772,162.59,162.56,3.02515439]
[1762542843656,2.9,162.67,162.58,2.98]
[1762542843856,4.84257374,162.66,162.58,2.98]
[1762542844055,4.84257374,162.65,162.61,2.98]
[1762542844256,4.84257374,162.64,162.61,2.98]
[1762542844453,2.9,162.7,162.61,2.98]
[1762542844658,5.71062629,162.71,162.64,3.02017433]
[1762542844659,0.04085115,162.67,162.64,3.02017433]
[1762542844865,2.94085115,162.67,162.64,0.04017433]
[1762542845056,2.9,162.65,162.64,0.04017433]
[1762542845663,5.57745115,162.67,162.64,0.04017433]
[1762542845664,2.94085115,162.67,162.64,0.04017433]
[1762542845859,4.84019185,162.66,162.64,0.04017433]
[1762542846059,8.47735115,162.67,162.64,0.04017433]
[1762542846260,4.84009461,162.66,162.64,0.04017433]
[1762542846466,0.04085115,162.67,162.64,3.02017433]
[1762542846761,0.04085115,162.67,162.64,0.04017433]
[1762542847470,0.04085115,162.67,162.64,5.57747433]
[1762542847669,0.04085115,162.67,162.65,2.98]
[1762542848059,0.04085115,162.67,162.65,8.5169]
[1762542848863,0.04085115,162.67,162.66,2.98]
[1762542850572,8.61062629,162.74,162.67,5.536]
[1762542850771,4.88566193,162.73,162.66,2.98]
[1762542850968,4.88566193,162.72,162.66,2.98]
[1762542851269,2.9,162.74,162.66,2.98]
[1762542851467,4.88270509,162.73,162.7,8.5152]
[1762542851772,5.5335,162.76,162.7,8.55421252]
[1762542852066,4.8826541,162.75,162.71,2.98]
[1762542852273,4.8826541,162.74,162.72,2.98]
[1762542852466,14.14342629,162.78,162.72,2.98]
[1762542852667,2.9,162.76,162.71,0.04731299]
[1762542852875,2.9,162.74,162.72,0.04294215]
[1762542853367,2.9,162.76,162.72,0.04294215]
[1762542853559,2.9,162.74,162.72,0.04176606]
[1762542853761,4.87818434,162.73,162.71,0.04572162]
[1762542853963,2.9,162.74,162.71,0.04572162]
[1762542854163,4.87818493,162.73,162.71,0.04572162]
[1762542854367,2.9,162.74,162.71,0.04572162]
[1762542854670,2.9,162.72,162.64,8.5172]
[1762542854971,4.87854285,162.71,162.65,5.5369]
[1762542855164,7.77854285,162.7,162.65,2.98]
[1762542855362,2.9,162.69,162.62,9.0]
[1762542855564,2.9,162.69,162.64,8.5173]
[1762542855868,0.0471062,162.68,162.65,0.0412056]
[1762542856065,0.0471062,162.68,162.67,2.98]
[1762542856265,0.0471062,162.68,162.66,5.5366]
[1762542856472,0.0471062,162.68,162.66,8.5166]
[1762542856771,0.0471062,162.68,162.66,2.98]
[1762542857672,0.0471062,162.68,162.65,5.5781056]
[1762542858667,2.9471062,162.68,162.65,5.5781056]
[1762542859366,2.9471062,162.68,162.65,0.0412056]
[1762542861572,0.0471062,162.68,162.66,2.98]
[1762542861760,0.0471062,162.68,162.65,3.0212056]
[1762542862360,0.0471062,162.68,162.67,2.98]
[1762542862672,8.61062629,162.76,162.67,2.98]
[1762542862867,4.8815235,162.75,162.69,2.98]
[1762542863074,4.8815235,162.74,162.69,2.98]
[1762542863369,2.9,162.76,162.69,2.98]
[1762542863567,2.9,162.76,162.72,2.98]
[1762542863568,4.88039531,162.75,162.72,2.98]
[1762542863876,2.9,162.79,162.74,2.98]
[1762542864080,4.87987675,162.78,162.75,0.04087484]
[1762542864377,4.87987675,162.77,162.75,5.57417484]
[1762542864573,7.69029971,162.82,162.76,2.98]
[1762542864574,5.71062629,162.82,162.76,2.98]
[1762542864776,4.87709584,162.81,162.76,2.98]
[1762542864973,4.87709584,162.8,162.77,3.02040127]
[1762542865170,8.61062629,162.84,162.77,3.02040127]
[1762542865476,4.87597872,162.83,162.77,3.02040127]
[1762542865670,4.87597872,162.82,162.77,3.02040127]
[1762542865869,4.87597872,162.81,162.77,3.02040127]
[1762542866178,5.71062629,162.84,162.77,3.02040127]
[1762542866478,2.9,162.87,162.77,3.02040127]
[1762542866676,4.86543934,162.86,162.8,0.04508002]
[1762542866880,4.86543934,162.85,162.8,3.02508002]
[1762542867084,5.71062629,162.89,162.81,2.98]
[1762542867282,7.76543934,162.88,162.83,0.04507244]
[1762542867477,4.86543934,162.87,162.83,3.02507244]
[1762542867677,4.86543934,162.86,162.83,0.04507244]
[1762542867879,2.9,162.88,162.83,3.02507244]
[1762542868079,4.8600677,162.87,162.83,3.02507244]
[1762542868278,4.8600677,162.86,162.83,0.04507244]
[1762542868580,2.9,162.88,162.83,0.04507244]
[1762542868780,7.75518448,162.87,162.83,0.04507244]
[1762542869085,4.85518448,162.86,162.83,0.04507244]
[1762542869282,2.9,162.87,162.83,0.04507244]
[1762542869283,7.75472763,162.85,162.83,0.04507244]
[1762542869583,7.75220014,162.84,162.83,0.04507244]
[1762542869783,7.75220014,162.84,162.82,0.0409288]
[1762542869983,2.9,162.84,162.82,0.0409288]
[1762542870186,8.61062629,162.88,162.82,0.0409288]
[1762542870482,2.9,162.86,162.82,0.0409288]
[1762542870681,11.14276399,162.93,162.82,0.0409288]
[1762542870682,2.9,162.84,162.82,0.03918739]
[1762542870886,2.9,162.84,162.81,0.04557098]
[1762542871086,7.69029971,162.9,162.65,14.22804064]
[1762542871087,4.84977144,162.83,162.65,14.22804064]
[1762542871384,2.9,162.78,162.66,2.98]
[1762542871578,2.9,162.76,162.66,2.98]
[1762542871776,4.84977144,162.75,162.66,8.5165]
[1762542871984,0.04194586,162.72,162.69,0.04451309]
[1762542872179,0.04194586,162.72,162.71,2.85]
[1762542873082,2.87,162.81,162.72,5.5345]
[1762542873282,4.8520657,162.8,162.72,5.5345]
[1762542873481,4.8520657,162.79,162.72,5.5345]
[1762542873686,2.87,162.81,162.74,2.85]
[1762542873880,4.85426148,162.8,162.74,2.85]
[1762542874189,8.54181919,162.84,162.75,0.041408]
[1762542874390,2.87,162.82,162.78,0.03993182]
[1762542874693,4.85710892,162.81,162.78,0.0435795]
[1762542874879,4.85710892,162.8,162.78,0.0435795]
[1762542875079,2.87,162.82,162.78,0.0435795]
[1762542875289,4.85710892,162.81,162.78,0.0435795]
[1762542875488,4.85710892,162.8,162.78,0.0435795]
[1762542875788,2.87,162.82,162.78,0.0435795]
[1762542875975,4.85844101,162.81,162.78,0.0435795]
[1762542876180,4.85844101,162.8,162.78,0.0435795]
[1762542876486,8.4015,162.82,162.78,0.0435795]
[1762542876687,4.85883956,162.81,162.78,0.0435795]
[1762542876989,8.4015,162.82,162.78,0.0435795]
[1762542876990,4.85883956,162.8,162.78,0.0435795]
[1762542877291,8.4015,162.82,162.78,0.0435795]
[1762542877484,8.54181919,162.86,162.78,2.8935795]
[1762542877680,4.85803536,162.85,162.78,2.8935795]
[1762542877882,4.85803536,162.84,162.78,2.8935795]
[1762542878080,4.85803536,162.83,162.78,2.8935795]
[1762542878281,4.85803536,162.82,162.78,2.8935795]
[1762542878487,4.85803536,162.81,162.78,0.0435795]
[1762542878689,2.87,162.83,162.78,0.0435795]
[1762542878988,4.93440833,162.82,162.78,0.0435795]
[1762542879190,4.93440833,162.81,162.78,0.0435795]
[1762542879391,2.87,162.83,162.78,8.4259795]
[1762542879586,4.933783,162.82,162.78,8.4259795]
[1762542879786,5.67181919,162.86,162.79,9.0]
[1762542880088,4.93373516,162.85,162.81,2.89446375]
[1762542880290,4.93373516,162.84,162.81,2.89446375]
[1762542880590,2.87,162.89,162.81,2.89446375]
[1762542880591,5.67181919,162.89,162.81,2.89446375]
[1762542880782,4.93185843,162.88,162.83,3.09]
[1762542881090,4.93185843,162.87,162.84,3.13331186]
[1762542881284,5.67181919,162.91,162.84,3.13331186]
[1762542881477,4.93012121,162.9,162.84,3.13331186]
[1762542881683,5.67181919,162.94,162.84,3.13331186]
[1762542881879,4.92926763,162.93,162.87,5.57417888]
[1762542882086,4.92926763,162.92,162.87,3.13477888]
[1762542882280,5.67181919,162.95,162.87,3.13477888]
[1762542882484,4.92546831,162.94,162.87,3.13477888]
[1762542882686,4.92546831,162.93,162.89,8.6186]
[1762542882886,4.92546831,162.92,162.89,8.65923139]
[1762542883089,5.67181919,162.95,162.89,8.65923139]
[1762542883291,16.23649971,162.97,162.9,3.09]
[1762542883292,4.92546831,162.94,162.9,3.09]
[1762542883484,4.92546831,162.93,162.9,3.09]
[1762542883687,4.92546831,162.92,162.91,3.09]
[1762542883886,5.67181919,162.98,162.91,3.09]
[1762542884088,8.69181919,162.98,162.93,0.03913354]
[1762542884288,5.67181919,162.97,162.93,0.03913354]
[1762542884489,3.02,162.98,162.93,3.12913354]
[1762542884490,8.69181919,162.98,162.93,3.12913354]
[1762542884798,5.67181919,162.99,162.93,3.12913354]
[1762542884983,5.67181919,162.99,162.93,8.65633354]
[1762542885290,3.02,162.98,162.93,0.03913354]
[1762542885689,8.69181919,162.98,162.93,0.03913354]
[1762542885890,3.02,162.98,162.93,0.03913354]
[1762542886186,3.02,162.96,162.93,0.03913354]
[1762542886497,5.67181919,162.97,162.93,0.04491757]
[1762542886794,3.02,162.97,162.93,0.04491757]
[1762542890588,3.02,162.96,162.93,0.04491757]
[1762542891096,3.02,162.95,162.93,0.04491757]
[1762542893589,3.02,162.97,162.93,0.04491757]
[1762542894493,3.02,162.96,162.93,0.04491757]
[1762542895789,4.88588696,162.95,162.93,0.04491757]
[1762542896098,4.88588696,162.94,162.93,0.04491757]
[1762542896895,7.90588696,162.94,162.93,0.04491757]
[1762542898594,3.02,162.93,162.85,8.62]
[1762542898907,7.90588696,162.92,162.85,8.62]
[1762542899198,3.02,162.9,162.81,8.74078421]
[1762542899388,4.88588696,162.89,162.82,3.09]
[1762542899595,0.0393714,162.87,162.84,0.04553443]
[1762542899794,3.0593714,162.87,162.84,0.04553443]
[1762542900393,3.0593714,162.87,162.84,3.13553443]
[1762542900394,0.0393714,162.87,162.84,3.13553443]
[1762542900698,0.0393714,162.87,162.86,3.09]
[1762542900901,5.67181919,162.94,162.86,3.09]
[1762542901094,4.88745087,162.93,162.88,3.09]
[1762542901293,3.02,162.95,162.88,8.619]
[1762542901498,4.88896395,162.94,162.88,3.09]
[1762542901692,4.88896395,162.93,162.88,3.09]
[1762542901894,3.02,162.95,162.88,3.09]
[1762542901895,3.02,162.95,162.9,5.5284]
[1762542902092,7.92902044,162.94,162.89,0.04631262]
[1762542902297,7.92902044,162.93,162.9,0.0405512]
[1762542902498,7.92902044,162.92,162.9,0.0405512]
[1762542902697,7.92902044,162.91,162.9,0.0405512]
[1762542902900,7.92902044,162.91,162.84,6.9]
[1762542903097,3.04,162.94,162.85,2.94]
[1762542903301,7.9315969,162.93,162.88,8.4691]
[1762542903504,3.04,162.91,162.84,3.96]
[1762542903703,3.04,162.86,162.84,3.96]
[1762542904007,7.93549087,162.85,162.84,3.96]
[1762542905402,5.07070443,162.9,162.85,2.94]
[1762542905597,3.04,162.93,162.84,3.96]
[1762542905809,3.04,162.92,162.84,3.96]
[1762542906012,8.5683,162.91,162.84,3.96]
[1762542906205,3.04,162.91,162.84,3.96]
[1762542906408,3.04,162.91,162.87,5.5294]
[1762542907203,3.04,162.91,162.86,0.03953224]
[1762542907602,3.04,162.89,162.86,0.03953224]
[1762542908808,3.04,162.87,162.86,0.03953224]
[1762542909108,3.04,162.87,162.84,3.96]
[1762542910107,0.04350417,162.87,162.84,4.00690797]
[1762542910309,0.04350417,162.87,162.85,2.94]
[1762542910805,0.04350417,162.87,162.85,5.5301]
[1762542911014,0.04350417,162.87,162.86,2.94]
[1762542912112,0.04350417,162.87,162.85,5.5301]
[1762542912309,0.04350417,162.87,162.85,8.4701]
[1762542912711,0.04350417,162.87,162.86,8.59078421]
[1762542913412,10.73029971,162.96,162.87,2.94]
[1762542913715,3.04,162.96,162.87,2.94]
[1762542914008,3.04,162.95,162.84,3.96]
[1762542914211,3.04,162.93,162.84,3.96]
[1762542914510,3.04,162.93,162.87,0.04004752]
[1762542914716,8.5683,162.91,162.87,0.04004752]
[1762542914907,8.5683,162.91,162.87,0.04105704]
[1762542915308,3.04,162.89,162.87,0.04105704]
[1762542915508,3.04,162.92,162.84,6.9]
[1762542915712,3.04,162.92,162.86,0.0419976]
[1762542915913,3.04,162.9,162.86,0.0419976]
[1762542916410,8.5686,162.9,162.86,0.0419976]
[1762542916612,3.04,162.89,162.86,0.0419976]
[1762542916809,3.04,162.93,162.86,0.0419976]
[1762542917206,5.5281,162.92,162.86,0.0419976]
[1762542917412,4.84513787,162.91,162.87,2.94]
[1762542917610,4.84513787,162.9,162.87,2.94]
[1762542917811,4.84513787,162.89,162.87,2.94]
[1762542918015,3.04,162.92,162.86,5.5716976]
[1762542918211,4.84511945,162.91,162.86,2.9819976]
[1762542918410,4.84809741,162.9,162.86,2.9819976]
[1762542918714,3.04,162.93,162.86,8.51067438]
[1762542918913,4.84814401,162.92,162.86,8.51067438]
[1762542919213,3.04,162.9,162.86,0.04087438]
[1762542919418,7.88814401,162.89,162.86,0.04605125]
[1762542919613,4.84814401,162.88,162.86,0.04605125]
[1762542919820,3.04,162.89,162.86,0.04605125]
[1762542920016,4.85161173,162.88,162.86,0.04605125]
[1762542920312,5.5269,162.95,162.89,5.5287]
[1762542920506,7.69029971,162.96,162.9,0.04548427]
[1762542920507,3.04,162.93,162.9,0.04548427]
[1762542920708,3.04,162.91,162.9,0.04548427]
[1762542920916,7.89422802,162.91,162.9,0.04548427]
[1762542924023,4.85422802,162.91,162.9,0.04548427]
[1762542924318,7.89422802,162.91,162.9,0.04548427]
[1762542924721,4.85422802,162.91,162.9,0.04548427]
[1762542925515,7.89422802,162.91,162.9,0.04548427]
[1762542928115,3.04,162.85,162.84,3.96]
[1762542928312,3.04,162.84,162.79,6.38945]
[1762542928512,3.04,162.82,162.79,6.38945]
[1762542928723,5.5303,162.85,162.79,9.32945]
[1762542928921,4.86960799,162.84,162.8,2.94]
[1762542929220,4.86960799,162.83,162.8,0.03987684]
[1762542929416,8.6104394,162.84,162.8,0.03987684]
[1762542929616,4.86833113,162.83,162.8,0.03987684]
[1762542929915,0.0397394,162.84,162.8,2.97987684]
[1762542930824,3.0797394,162.84,162.8,0.03987684]
[1762542931719,0.0397394,162.84,162.8,8.51167684]
[1762542932125,3.0097394,162.84,162.8,0.03987684]
[1762542932315,2.97,162.83,162.8,0.03987684]
[1762542932814,2.97,162.81,162.8,0.03987684]
[1762542933423,7.83617199,162.81,162.8,0.03987684]
[1762542933624,2.97,162.8,162.71,5.91]
[1762542933921,2.97,162.78,162.71,5.91]
[1762542934117,7.83617199,162.77,162.71,5.91]
[1762542934324,2.97,162.75,162.71,5.91]
[1762542934623,3.01037814,162.75,162.71,5.95204988]
[1762542934923,0.04037814,162.75,162.71,9.06204988]
[1762542935218,0.04037814,162.75,162.71,5.95204988]
[1762542935421,0.04037814,162.75,162.72,8.6445]
[1762542936115,0.04037814,162.75,162.73,5.5341]
[1762542936618,2.97,162.84,162.75,5.5334]
[1762542936923,2.97,162.84,162.75,3.11]
[1762542937117,13.35765375,162.83,162.75,8.6435]
[1762542937318,4.85655375,162.82,162.75,8.6435]
[1762542937512,8.5011,162.83,162.75,8.6435]
[1762542937721,0.0437285,162.81,162.77,8.68530923]
[1762542938222,3.0137285,162.81,162.77,0.04260923]
[1762542938622,0.0437285,162.81,162.77,3.15260923]
[1762542939221,3.0137285,162.81,162.77,0.04260923]
[1762542940112,0.0437285,162.81,162.77,3.15260923]
[1762542940720,3.0737285,162.81,162.77,0.04260923]
[1762542942025,0.0437285,162.81,162.77,3.12260923]
[1762542942523,0.0437285,162.81,162.77,8.65540923]
[1762542942926,0.0437285,162.81,162.78,3.08]
[1762542943125,0.0437285,162.81,162.79,5.65078421]
[1762542943320,0.0437285,162.81,162.8,3.08]
[1762542946624,4.90078135,162.88,162.83,3.08]
[1762542946826,3.03,162.91,162.83,3.08]
[1762542947328,3.03,162.89,162.79,3.08]
[1762542947627,3.03,162.87,162.73,3.08]
[1762542947825,3.03,162.82,162.73,3.08]
[1762542948019,3.03,162.8,162.78,0.03993315]
[1762542948223,7.93314639,162.79,162.78,0.03993315]
[1762542948527,7.93306856,162.79,162.78,0.03993315]
[1762542948734,7.93306856,162.79,162.7,266.81629401]
[1762542948922,4.90306856,162.78,162.7,266.81629401]
[1762542949118,3.03,162.78,162.69,8.77]
[1762542949422,4.9014986,162.77,162.69,8.77]
[1762542949622,3.03,162.82,162.71,3.08]
[1762542949827,0.04118762,162.78,162.75,0.03989988]
[1762542950230,3.07118762,162.78,162.75,0.03989988]
[1762542953433,3.03,162.76,162.75,0.03989988]
[1762542953628,7.9262129,162.76,162.75,0.03989988]
[1762542953825,3.03,162.76,162.75,0.03989988]
[1762542954130,3.07118762,162.78,162.75,0.03989988]
[1762542954323,0.04118762,162.78,162.75,0.03989988]
[1762542954524,3.07118762,162.78,162.75,0.03989988]
[1762542955230,0.04118762,162.78,162.75,3.11989988]
[1762542956230,0.04118762,162.78,162.75,0.03989988]
[1762542956934,0.04118762,162.78,162.75,3.11989988]
[1762542957734,3.07118762,162.78,162.75,0.03989988]
[1762542958223,0.04118762,162.78,162.75,3.11989988]
[1762542958624,0.04118762,162.78,162.75,0.03989988]
[1762542959033,0.04118762,162.78,162.75,3.11989988]
[1762542960527,3.03,162.86,162.78,3.08]
[1762542960934,8.5601,162.86,162.78,3.08]
[1762542961136,4.89363394,162.85,162.78,3.08]
[1762542961334,3.03,162.83,162.74,11.74857267]
[1762542961543,3.03,162.83,162.77,0.04568464]
[1762542961944,7.92489661,162.82,162.77,0.04568464]
[1762542962140,7.92489661,162.82,162.74,11.74857267]
[1762542962141,3.06,162.86,162.78,2.99253556]
[1762542962340,3.06,162.86,162.8,2.98976993]
[1762542962640,3.06,162.91,162.8,2.98976993]
[1762542962836,7.95451862,162.9,162.84,0.04518515]
[1762542963034,11.14276399,162.96,162.85,2.99555247]
[1762542963035,3.06,162.96,162.85,2.99555247]
[1762542963240,3.06,162.94,162.89,0.04322561]
[1762542963431,3.06,162.92,162.89,0.04322561]
[1762542963627,7.69029971,162.98,162.89,0.03945665]
[1762542963838,7.9531597,162.97,162.89,0.03945665]
[1762542964038,7.9531597,162.96,162.91,0.04172532]
[1762542964240,3.06,162.93,162.92,0.03953191]
[1762542964436,3.06,162.92,162.83,2.95]
[1762542964640,10.4214597,162.91,162.83,8.4808]
[1762542964839,4.8931597,162.9,162.83,2.95]
[1762542965037,3.06,162.92,162.83,2.95]
[1762542965237,3.06,162.97,162.89,2.95]
[1762542965445,0.03953191,162.95,162.91,2.99010192]
[1762542965738,0.03953191,162.95,162.91,2.99245352]
[1762542967541,0.03953191,162.95,162.91,8.52035352]
[1762542968740,0.03953191,162.95,162.93,5.5275]
[1762542968940,0.03953191,162.95,162.91,0.04245352]
[1762542969435,0.03953191,162.95,162.91,2.99245352]
[1762542969744,3.06,163.03,162.92,2.95]
[1762542969936,4.82010579,163.02,162.92,2.95]
[1762542970244,4.81748387,163.01,162.92,2.95]
[1762542970543,3.06,163.03,162.92,2.95]
[1762542970737,4.81792035,163.02,162.95,0.04386495]
[1762542970930,4.81792035,163.01,162.95,5.57046495]
[1762542971138,3.06,163.03,162.95,2.99386495]
[1762542971333,3.06,163.07,162.95,2.99386495]
[1762542971532,7.87386312,163.06,162.99,0.04257236]
[1762542971731,7.87386312,163.05,163.01,0.04024985]
[1762542971936,7.69029971,163.1,163.01,0.04024985]
[1762542971937,4.81386312,163.04,163.01,0.04024985]
[1762542972249,3.06,163.04,163.01,0.04024985]
[1762542972434,7.86855476,163.03,163.01,0.04024985]
[1762542972635,3.06,163.03,163.01,0.04024985]
[1762542972847,3.06,163.07,163.01,0.04024985]
[1762542973040,4.80841196,163.06,163.01,2.99024985]
[1762542973246,11.22327577,163.1,163.01,8.51484985]
[1762542973447,3.06,163.08,163.04,0.03961205]
[1762542973748,3.06,163.06,163.04,0.04420729]
[1762542974043,4.80299027,163.05,163.04,0.04420729]
[1762542974746,3.06,163.08,163.04,0.04420729]
[1762542974948,4.79852593,163.07,163.04,0.04420729]
[1762542975143,3.06,163.08,163.04,0.04420729]
[1762542975345,4.79515466,163.07,163.04,0.04420729]
[1762542975546,5.70147577,163.11,163.04,0.04420729]
[1762542975742,4.79418744,163.1,163.04,0.04420729]
[1762542975948,4.79418744,163.09,163.04,0.04420729]
[1762542976249,4.46109871,163.12,163.04,2.99420729]
[1762542976442,4.78895256,163.11,163.04,2.99420729]
[1762542976749,3.06,163.08,163.04,0.04420729]
[1762542976945,5.5223,163.09,163.04,0.04420729]
[1762542977337,5.5226,163.08,163.04,0.04420729]
[1762542977947,3.06,163.05,163.04,0.04420729]
[1762542978143,7.84629525,163.05,163.04,0.04420729]
[1762542978346,5.524,163.04,162.96,2.95]
[1762542978747,3.06,163.04,162.87,4.76]
[1762542978958,3.06,163.02,162.92,2.95]
[1762542979253,3.06,163.0,162.92,2.95]
[1762542979442,0.04347528,162.98,162.94,2.99265861]
[1762542979647,0.04347528,162.98,162.94,0.04265861]
[1762542980152,5.56957528,162.98,162.94,0.04265861]
[1762542980646,0.04347528,162.98,162.94,0.04265861]
[1762542980951,0.04347528,162.98,162.94,2.99265861]
[1762542982249,0.04347528,162.98,162.97,2.95]
[1762542984261,3.06,163.05,162.97,2.95]
[1762542984553,5.5233,163.06,162.98,2.95]
[1762542984756,16.35887238,163.11,162.95,2.95]
[1762542984757,3.06,163.04,162.95,2.95]
[1762542984958,4.78306132,163.03,162.95,2.95]
[1762542985157,3.06,163.04,162.95,2.95]
[1762542985348,7.84324335,163.03,162.98,0.04350128]
[1762542985554,3.06,163.03,162.95,2.95]
[1762542985753,3.06,163.03,162.97,0.04290437]
[1762542986055,5.70147577,163.07,162.97,0.04290437]
[1762542986056,3.06,163.01,162.97,0.04290437]
[1762542986358,3.06,163.05,162.97,0.04550182]
[1762542986558,3.06,163.03,162.99,0.04514599]
[1762542986860,3.06,163.03,162.99,0.04100558]
[1762542987269,3.06,163.01,162.99,0.04100558]
[1762542987474,3.06,163.0,162.99,0.04100558]
[1762542987766,7.84368449,163.0,162.99,0.04100558]